[Event "*** Titled Tuesday Blitz"]
[Site "Chess.com"]
[Date "2020.11.10"]
[Round "3"]
[White "Nils_03"]
[Black "MarcoRiehle"]
[Result "0-1"]
[WhiteElo "2241"]
[BlackElo "2669"]
[TimeControl "180+1"]
[EndTime "10:30:25 PST"]
[Termination "MarcoRiehle won by resignation"]

1. Nf3 {[%clk 0:03:00.9]} 1... d5 {[%clk 0:02:59.3]} 2. g3 {[%clk 0:03:00.8]}
2... c5 {[%clk 0:02:59]} 3. Bg2 {[%clk 0:03:01.7]} 3... Nc6 {[%clk 0:02:59.4]}
4. O-O {[%clk 0:03:01.8]} 4... e5 {[%clk 0:02:59.1]} 5. c4 {[%clk 0:03:01.7]}
5... Nge7 {[%clk 0:02:58.1]} 6. cxd5 {[%clk 0:03:01.5]} 6... Nxd5 {[%clk
0:02:59]} 7. Nc3 {[%clk 0:03:00.9]} 7... Be6 {[%clk 0:02:58.9]} 8. d3 {[%clk
0:02:59.8]} 8... Be7 {[%clk 0:02:58.3]} 9. Bd2 {[%clk 0:02:59.3]} 9... O-O
{[%clk 0:02:57.4]} 10. Nxd5 {[%clk 0:02:59.3]} 10... Bxd5 {[%clk 0:02:57]} 11.
Bc3 {[%clk 0:03:00.2]} 11... f6 {[%clk 0:02:57.3]} 12. a4 {[%clk 0:03:00.1]}
12... Qd7 {[%clk 0:02:57]} 13. a5 {[%clk 0:02:59.9]} 13... b5 {[%clk 0:02:54.8]}
14. a6 {[%clk 0:02:54.4]} 14... Rfd8 {[%clk 0:02:50.9]} 15. Qc2 {[%clk
0:02:51.7]} 15... Rac8 {[%clk 0:02:49.9]} 16. Rfc1 {[%clk 0:02:49.1]} 16... Kh8
{[%clk 0:02:46.6]} 17. Qd1 {[%clk 0:02:47.5]} 17... Bf8 {[%clk 0:02:42.8]} 18.
Ne1 {[%clk 0:02:40.3]} 18... Be6 {[%clk 0:02:41.3]} 19. Nc2 {[%clk 0:02:37.7]}
19... Bb3 {[%clk 0:02:37.1]} 20. Qe1 {[%clk 0:02:34.7]} 20... Qf7 {[%clk
0:02:29.7]} 21. Ba5 {[%clk 0:02:23.8]} 21... Re8 {[%clk 0:02:27.2]} 22. Bc3
{[%clk 0:02:21.5]} 22... Qe6 {[%clk 0:02:20.1]} 23. Ne3 {[%clk 0:02:14.2]} 23...
Red8 {[%clk 0:02:13.4]} 24. Qf1 {[%clk 0:02:12.9]} 24... Nd4 {[%clk 0:02:10]}
25. Bh3 {[%clk 0:02:05.4]} 25... Nxe2+ {[%clk 0:02:04.8]} 26. Kg2 {[%clk
0:01:51.8]} 26... Qc6+ {[%clk 0:02:01.6]} 27. f3 {[%clk 0:01:47.1]} 27... Nxc1
{[%clk 0:02:01.5]} 28. Rxc1 {[%clk 0:01:41]} 28... Rc7 {[%clk 0:01:57.3]} 29.
Ba5 {[%clk 0:01:40.5]} 29... Rcd7 {[%clk 0:01:43.9]} 30. Bxd8 {[%clk 0:01:38.9]}
30... Rxd8 {[%clk 0:01:44]} 31. Rc3 {[%clk 0:01:35.5]} 31... Be6 {[%clk
0:01:42.6]} 32. Bxe6 {[%clk 0:01:34.1]} 32... Qxe6 {[%clk 0:01:43.5]} 33. Qa1
{[%clk 0:01:16.6]} 33... b4 {[%clk 0:01:34.1]} 34. Qa5 {[%clk 0:01:13.4]} 34...
Rd6 {[%clk 0:01:21.3]} 35. Rxc5 {[%clk 0:01:05.4]} 35... Rxd3 {[%clk 0:01:20.7]}
36. Nd5 {[%clk 0:00:48.6]} 36... Bxc5 {[%clk 0:01:13.8]} 37. Qxc5 {[%clk
0:00:41.5]} 37... Qxd5 {[%clk 0:01:12.4]} 0-1

[Event "*** Titled Tuesday Blitz"]
[Site "Chess.com"]
[Date "2020.11.10"]
[Round "3"]
[White "Manukyan_Artak"]
[Black "janumber1"]
[Result "1-0"]
[WhiteElo "2335"]
[BlackElo "2125"]
[TimeControl "180+1"]
[EndTime "10:30:25 PST"]
[Termination "Manukyan_Artak won by checkmate"]

1. e4 {[%clk 0:02:57.3]} 1... c5 {[%clk 0:01:53.6]} 2. Nf3 {[%clk 0:02:45.8]}
2... e6 {[%clk 0:01:52.4]} 3. c3 {[%clk 0:02:46.1]} 3... Nc6 {[%clk 0:01:48.5]}
4. d4 {[%clk 0:02:45.1]} 4... cxd4 {[%clk 0:01:47.3]} 5. cxd4 {[%clk 0:02:45.3]}
5... d5 {[%clk 0:01:47.5]} 6. e5 {[%clk 0:02:45.5]} 6... Nge7 {[%clk 0:01:42.9]}
7. Nc3 {[%clk 0:02:40.9]} 7... Nf5 {[%clk 0:01:41.2]} 8. Be3 {[%clk 0:02:39.3]}
8... Qb6 {[%clk 0:01:39]} 9. Qd2 {[%clk 0:02:35]} 9... Bb4 {[%clk 0:01:36.3]}
10. Bd3 {[%clk 0:02:27.5]} 10... Nxe3 {[%clk 0:01:34.7]} 11. fxe3 {[%clk
0:02:26.9]} 11... O-O {[%clk 0:01:32]} 12. O-O {[%clk 0:02:25.4]} 12... f6
{[%clk 0:01:31.5]} 13. exf6 {[%clk 0:02:22.4]} 13... Rxf6 {[%clk 0:01:30.4]} 14.
Kh1 {[%clk 0:02:13.7]} 14... Bd7 {[%clk 0:01:21.1]} 15. Ng5 {[%clk 0:02:07]}
15... Rxf1+ {[%clk 0:01:08.4]} 16. Rxf1 {[%clk 0:02:05]} 16... g6 {[%clk
0:01:08.9]} 17. Rf3 {[%clk 0:01:41.3]} 17... e5 {[%clk 0:01:00.2]} 18. Qf2
{[%clk 0:01:27.7]} 18... e4 {[%clk 0:00:56.9]} 19. Rf7 {[%clk 0:01:26.8]} 19...
Bxc3 {[%clk 0:00:54.9]} 20. Rxd7 {[%clk 0:01:23.5]} 20... Rf8 {[%clk 0:00:54.4]}
21. Rf7 {[%clk 0:01:20.1]} 21... Re8 {[%clk 0:00:45.5]} 22. Rxh7 {[%clk
0:01:12.1]} 22... Rf8 {[%clk 0:00:44.7]} 23. Rf7 {[%clk 0:01:12]} 23... Qb4
{[%clk 0:00:35.2]} 24. Qf6 {[%clk 0:00:47.4]} 24... Bxd4 {[%clk 0:00:30.4]} 25.
Qxg6+ {[%clk 0:00:46.9]} 25... Kh8 {[%clk 0:00:29.3]} 26. Qh7# {[%clk
0:00:46.8]} 1-0

[Event "*** Titled Tuesday Blitz"]
[Site "Chess.com"]
[Date "2020.11.10"]
[Round "3"]
[White "ecwinslow"]
[Black "geordie_derraugh"]
[Result "0-1"]
[WhiteElo "2226"]
[BlackElo "2452"]
[TimeControl "180+1"]
[EndTime "10:30:29 PST"]
[Termination "geordie_derraugh won by resignation"]

1. e4 {[%clk 0:03:00.9]} 1... c5 {[%clk 0:02:59.4]} 2. Nf3 {[%clk 0:02:57.6]}
2... e6 {[%clk 0:02:59.5]} 3. d4 {[%clk 0:02:57.2]} 3... cxd4 {[%clk 0:02:59.8]}
4. Nxd4 {[%clk 0:02:57.6]} 4... Nc6 {[%clk 0:02:59.7]} 5. Nc3 {[%clk 0:02:56.7]}
5... Qc7 {[%clk 0:02:58.6]} 6. g3 {[%clk 0:02:50.5]} 6... Nf6 {[%clk 0:02:57.2]}
7. Bg2 {[%clk 0:02:45.8]} 7... a6 {[%clk 0:02:57.3]} 8. O-O {[%clk 0:02:44.2]}
8... h5 {[%clk 0:02:57.1]} 9. Re1 {[%clk 0:02:33.2]} 9... Nxd4 {[%clk
0:02:56.4]} 10. Qxd4 {[%clk 0:02:31.8]} 10... Bc5 {[%clk 0:02:56.6]} 11. Bf4
{[%clk 0:02:17.4]} 11... d6 {[%clk 0:02:56.5]} 12. Qd2 {[%clk 0:02:15.4]} 12...
e5 {[%clk 0:02:50.1]} 13. Be3 {[%clk 0:02:10.7]} 13... Be6 {[%clk 0:02:45.5]}
14. Rad1 {[%clk 0:02:03.7]} 14... Rd8 {[%clk 0:02:44.7]} 15. Nd5 {[%clk
0:01:42]} 15... Bxd5 {[%clk 0:02:39.6]} 16. exd5 {[%clk 0:01:41.1]} 16... h4
{[%clk 0:02:35.4]} 17. c4 {[%clk 0:01:19.8]} 17... hxg3 {[%clk 0:02:19.5]} 18.
hxg3 {[%clk 0:01:18.7]} 18... Ng4 {[%clk 0:02:15.1]} 19. Bxc5 {[%clk 0:01:18]}
19... Qxc5 {[%clk 0:02:15]} 20. Rc1 {[%clk 0:00:57.2]} 20... a5 {[%clk
0:01:52.6]} 21. Re4 {[%clk 0:00:46.6]} 21... f5 {[%clk 0:01:47.2]} 22. Rxg4
{[%clk 0:00:45.4]} 22... fxg4 {[%clk 0:01:46.3]} 23. Qg5 {[%clk 0:00:44.9]}
23... O-O {[%clk 0:01:45.5]} 24. Rc2 {[%clk 0:00:42]} 24... Qd4 {[%clk
0:01:41.9]} 25. Bf1 {[%clk 0:00:30.1]} 25... Rde8 {[%clk 0:01:37]} 26. Rd2
{[%clk 0:00:27.7]} 26... Qe4 {[%clk 0:01:29.9]} 27. Qh5 {[%clk 0:00:17.2]} 27...
Qf5 {[%clk 0:01:23.3]} 28. Qh4 {[%clk 0:00:15.2]} 28... Rf6 {[%clk 0:01:18.1]}
29. Bd3 {[%clk 0:00:13.9]} 29... e4 {[%clk 0:01:17.3]} 30. Bf1 {[%clk
0:00:08.1]} 30... Rh6 {[%clk 0:01:04.1]} 0-1

[Event "*** Titled Tuesday Blitz"]
[Site "Chess.com"]
[Date "2020.11.10"]
[Round "3"]
[White "BilodeauA"]
[Black "sofaceindisguise"]
[Result "1-0"]
[WhiteElo "2917"]
[BlackElo "2671"]
[TimeControl "180+1"]
[EndTime "10:30:30 PST"]
[Termination "BilodeauA won by resignation"]

1. d4 {[%clk 0:03:00.9]} 1... Nf6 {[%clk 0:02:59.7]} 2. Nc3 {[%clk 0:03:01.3]}
2... d5 {[%clk 0:02:59.4]} 3. Bf4 {[%clk 0:03:01.4]} 3... a6 {[%clk 0:02:59.1]}
4. e3 {[%clk 0:03:01.9]} 4... e6 {[%clk 0:02:58.4]} 5. g4 {[%clk 0:03:02.2]}
5... Bd6 {[%clk 0:02:55.6]} 6. Qf3 {[%clk 0:03:01.9]} 6... Nc6 {[%clk 0:02:52]}
7. h4 {[%clk 0:03:00.6]} 7... e5 {[%clk 0:02:50.2]} 8. dxe5 {[%clk 0:02:56.3]}
8... Nxe5 {[%clk 0:02:50.4]} 9. Qg3 {[%clk 0:02:55.2]} 9... Nexg4 {[%clk
0:02:47.6]} 10. O-O-O {[%clk 0:02:49.7]} 10... Bxf4 {[%clk 0:02:43.8]} 11. exf4
{[%clk 0:02:46.3]} 11... g6 {[%clk 0:02:43]} 12. Re1+ {[%clk 0:02:36.2]} 12...
Be6 {[%clk 0:02:40.4]} 13. h5 {[%clk 0:02:34.9]} 13... Nxh5 {[%clk 0:02:14]} 14.
Qxg4 {[%clk 0:02:26.9]} 14... Qf6 {[%clk 0:02:11.5]} 15. Nxd5 {[%clk 0:02:16.2]}
15... Qd8 {[%clk 0:01:36.1]} 16. Rxh5 {[%clk 0:01:33.1]} 16... gxh5 {[%clk
0:01:31.6]} 17. Qg7 {[%clk 0:01:31.7]} 17... Kd7 {[%clk 0:01:22]} 18. Rxe6
{[%clk 0:01:29.1]} 18... Kxe6 {[%clk 0:01:18.4]} 19. Qe5+ {[%clk 0:01:28]} 19...
Kd7 {[%clk 0:01:18.2]} 20. Bh3+ {[%clk 0:01:26.8]} 20... Kc6 {[%clk 0:01:16.9]}
21. Bg2 {[%clk 0:01:11.9]} 21... Qd6 {[%clk 0:01:10.8]} 22. Nf6+ {[%clk
0:01:08.3]} 22... Kb6 {[%clk 0:01:04.3]} 23. Qe3+ {[%clk 0:01:08.2]} 23... c5
{[%clk 0:01:00.7]} 24. Qb3+ {[%clk 0:01:08.2]} 24... Ka5 {[%clk 0:00:55.3]} 25.
Nd5 {[%clk 0:01:02.5]} 25... c4 {[%clk 0:00:48.4]} 26. Qc3+ {[%clk 0:00:55.5]}
26... Kb5 {[%clk 0:00:48.3]} 27. a4+ {[%clk 0:00:54.9]} 27... Kc5 {[%clk
0:00:43.8]} 28. Ne2 {[%clk 0:00:41.5]} 1-0

[Event "*** Titled Tuesday Blitz"]
[Site "Chess.com"]
[Date "2020.11.10"]
[Round "3"]
[White "DarZay"]
[Black "Kaua18"]
[Result "0-1"]
[WhiteElo "2066"]
[BlackElo "2296"]
[TimeControl "180+1"]
[EndTime "10:30:32 PST"]
[Termination "Kaua18 won on time"]

1. e4 {[%clk 0:03:00.1]} 1... c5 {[%clk 0:03:00.4]} 2. Nf3 {[%clk 0:02:59.4]}
2... Nc6 {[%clk 0:03:00.2]} 3. d4 {[%clk 0:02:59.4]} 3... cxd4 {[%clk
0:03:00.9]} 4. Nxd4 {[%clk 0:02:59.6]} 4... Nf6 {[%clk 0:03:01.2]} 5. Nc3 {[%clk
0:02:59.6]} 5... e6 {[%clk 0:03:01.8]} 6. Ndb5 {[%clk 0:02:56.2]} 6... d6 {[%clk
0:03:01.9]} 7. Be3 {[%clk 0:02:07.6]} 7... a6 {[%clk 0:03:00.8]} 8. Na3 {[%clk
0:02:06.7]} 8... b5 {[%clk 0:03:01.2]} 9. Nab1 {[%clk 0:01:24.3]} 9... b4 {[%clk
0:03:00.7]} 10. Na4 {[%clk 0:01:24.1]} 10... Nxe4 {[%clk 0:03:00.7]} 11. Bb6
{[%clk 0:01:17.2]} 11... Qd7 {[%clk 0:02:59.9]} 12. f3 {[%clk 0:01:15.2]} 12...
Nc5 {[%clk 0:02:56.5]} 13. Bxc5 {[%clk 0:01:08.7]} 13... dxc5 {[%clk 0:02:57.4]}
14. Qxd7+ {[%clk 0:01:07.6]} 14... Bxd7 {[%clk 0:02:58.3]} 15. Nb6 {[%clk
0:01:06.8]} 15... Ra7 {[%clk 0:02:55.9]} 16. Nd2 {[%clk 0:01:03.1]} 16... Be7
{[%clk 0:02:45.1]} 17. Ndc4 {[%clk 0:00:55.6]} 17... O-O {[%clk 0:02:40.9]} 18.
O-O-O {[%clk 0:00:54.6]} 18... Bc8 {[%clk 0:02:28.5]} 19. Nd6 {[%clk 0:00:48.2]}
19... Bxd6 {[%clk 0:02:28.4]} 20. Rxd6 {[%clk 0:00:47.9]} 20... Nd4 {[%clk
0:02:28.4]} 21. Nxc8 {[%clk 0:00:43.4]} 21... Rxc8 {[%clk 0:02:29.3]} 22. Bxa6
{[%clk 0:00:34.8]} 22... Rca8 {[%clk 0:02:26.8]} 23. Bc4 {[%clk 0:00:33.8]}
23... Kf8 {[%clk 0:02:24]} 24. c3 {[%clk 0:00:24.7]} 24... bxc3 {[%clk
0:02:17.9]} 25. bxc3 {[%clk 0:00:24.5]} 25... Ra3 {[%clk 0:02:14.9]} 26. Kb2
{[%clk 0:00:20.2]} 26... Nf5 {[%clk 0:02:00.5]} 27. Rd3 {[%clk 0:00:20]} 27...
Nh4 {[%clk 0:01:53.5]} 28. g3 {[%clk 0:00:18.9]} 28... Ng6 {[%clk 0:01:53.8]}
29. Rhd1 {[%clk 0:00:17.7]} 29... Ne5 {[%clk 0:01:46.7]} 30. Rd8+ {[%clk
0:00:12.2]} 30... Ke7 {[%clk 0:01:47]} 31. Rxa8 {[%clk 0:00:11.9]} 31... Nxc4+
{[%clk 0:01:47.2]} 32. Kc2 {[%clk 0:00:06.5]} 32... Rxa8 {[%clk 0:01:48.1]} 33.
Kb3 {[%clk 0:00:05.9]} 33... Nd6 {[%clk 0:01:41.9]} 34. c4 {[%clk 0:00:05.4]}
34... Rb8+ {[%clk 0:01:41.1]} 35. Kc3 {[%clk 0:00:05.2]} 35... Rb4 {[%clk
0:01:42]} 36. a3 {[%clk 0:00:02.4]} 36... Rxc4+ {[%clk 0:01:41.9]} 37. Kb3
{[%clk 0:00:02.9]} 37... Rd4 {[%clk 0:01:42]} 38. Rc1 {[%clk 0:00:01.4]} 38...
Rd3+ {[%clk 0:01:42.1]} 0-1

[Event "*** Titled Tuesday Blitz"]
[Site "Chess.com"]
[Date "2020.11.10"]
[Round "3"]
[White "suyu28"]
[Black "vugarrasulov"]
[Result "0-1"]
[WhiteElo "2629"]
[BlackElo "2872"]
[TimeControl "180+1"]
[EndTime "10:30:33 PST"]
[Termination "vugarrasulov won by resignation"]

1. c4 {[%clk 0:02:59.6]} 1... g6 {[%clk 0:02:59.1]} 2. d4 {[%clk 0:02:58.7]}
2... Bg7 {[%clk 0:02:59.7]} 3. g3 {[%clk 0:02:58.4]} 3... c5 {[%clk 0:02:59.2]}
4. d5 {[%clk 0:02:58.3]} 4... b5 {[%clk 0:02:57.4]} 5. cxb5 {[%clk 0:02:59.2]}
5... a6 {[%clk 0:02:56.7]} 6. bxa6 {[%clk 0:03:00.1]} 6... d6 {[%clk 0:02:56.2]}
7. Nc3 {[%clk 0:02:59.9]} 7... Nf6 {[%clk 0:02:56.2]} 8. a7 {[%clk 0:02:54.5]}
8... Rxa7 {[%clk 0:02:56.2]} 9. Nf3 {[%clk 0:02:54.3]} 9... O-O {[%clk
0:02:56.4]} 10. Bg2 {[%clk 0:02:54.8]} 10... Na6 {[%clk 0:02:49.8]} 11. O-O
{[%clk 0:02:52.7]} 11... Bf5 {[%clk 0:02:46.8]} 12. Nd2 {[%clk 0:02:39.2]} 12...
Nb4 {[%clk 0:02:44.8]} 13. e4 {[%clk 0:02:33.8]} 13... Bg4 {[%clk 0:02:45]} 14.
f3 {[%clk 0:02:33.8]} 14... Bc8 {[%clk 0:02:44.5]} 15. a3 {[%clk 0:02:30.3]}
15... Nd3 {[%clk 0:02:42.6]} 16. Qc2 {[%clk 0:02:22.1]} 16... Ba6 {[%clk
0:02:39.9]} 17. Rd1 {[%clk 0:02:19.4]} 17... Nxd5 {[%clk 0:02:24.2]} 18. Nb3
{[%clk 0:01:38.6]} 18... Nxc3 {[%clk 0:02:15.4]} 19. bxc3 {[%clk 0:01:38]} 19...
Nxc1 {[%clk 0:02:04.3]} 20. Rdxc1 {[%clk 0:01:37.4]} 20... Qb6 {[%clk
0:02:01.8]} 21. Kh1 {[%clk 0:01:35.1]} 21... Rb8 {[%clk 0:01:56.5]} 22. Rcb1
{[%clk 0:01:33.8]} 22... Qc7 {[%clk 0:01:53.6]} 23. Nd2 {[%clk 0:01:29.6]} 23...
Rab7 {[%clk 0:01:49.3]} 24. Rxb7 {[%clk 0:01:22.3]} 24... Qxb7 {[%clk
0:01:50.2]} 25. Rb1 {[%clk 0:01:16.8]} 25... Qc7 {[%clk 0:01:50.4]} 26. Bf1
{[%clk 0:00:42.9]} 26... Rxb1 {[%clk 0:01:39.3]} 27. Qxb1 {[%clk 0:00:41]} 27...
Bxf1 {[%clk 0:01:38.4]} 28. Nxf1 {[%clk 0:00:39.2]} 28... Bxc3 {[%clk
0:01:38.6]} 29. Qb3 {[%clk 0:00:36.4]} 29... Bd4 {[%clk 0:01:37.4]} 30. Nd2
{[%clk 0:00:36.5]} 30... e6 {[%clk 0:01:36.7]} 31. Kg2 {[%clk 0:00:31.4]} 31...
Qa5 {[%clk 0:01:34.4]} 32. Nc4 {[%clk 0:00:26.6]} 32... Qe1 {[%clk 0:01:34.3]}
33. Qd3 {[%clk 0:00:19.8]} 33... d5 {[%clk 0:01:30.8]} 34. exd5 {[%clk
0:00:20.7]} 34... exd5 {[%clk 0:01:31.7]} 35. Nb6 {[%clk 0:00:21.1]} 35... Qf2+
{[%clk 0:01:31.3]} 36. Kh3 {[%clk 0:00:21.1]} 36... c4 {[%clk 0:01:31.9]} 37.
Qd1 {[%clk 0:00:20.6]} 37... Bxb6 {[%clk 0:01:31.2]} 38. Qxd5 {[%clk 0:00:19.6]}
38... c3 {[%clk 0:01:31.3]} 39. Qe5 {[%clk 0:00:17.9]} 39... Bd4 {[%clk
0:01:30.8]} 0-1

[Event "*** Titled Tuesday Blitz"]
[Site "Chess.com"]
[Date "2020.11.10"]
[Round "3"]
[White "Alohamora11"]
[Black "Msb2"]
[Result "0-1"]
[WhiteElo "2463"]
[BlackElo "2892"]
[TimeControl "180+1"]
[EndTime "10:30:36 PST"]
[Termination "Msb2 won by resignation"]

1. e4 {[%clk 0:03:00.9]} 1... e6 {[%clk 0:03:00]} 2. d4 {[%clk 0:03:00.2]} 2...
d5 {[%clk 0:03:00.9]} 3. Nc3 {[%clk 0:03:00.7]} 3... Nf6 {[%clk 0:03:01.2]} 4.
Bg5 {[%clk 0:02:55.2]} 4... dxe4 {[%clk 0:03:01.4]} 5. Nxe4 {[%clk 0:02:52.1]}
5... Be7 {[%clk 0:03:01.7]} 6. Bxf6 {[%clk 0:02:48.1]} 6... gxf6 {[%clk
0:03:02]} 7. Nf3 {[%clk 0:02:46.3]} 7... f5 {[%clk 0:03:00.9]} 8. Nc3 {[%clk
0:02:45.7]} 8... a6 {[%clk 0:03:01.5]} 9. Qd3 {[%clk 0:02:44]} 9... b5 {[%clk
0:02:59.2]} 10. O-O-O {[%clk 0:02:41.1]} 10... b4 {[%clk 0:02:59.1]} 11. Na4
{[%clk 0:02:28.7]} 11... Qd5 {[%clk 0:02:58.5]} 12. Qc4 {[%clk 0:02:18.9]} 12...
Bb7 {[%clk 0:02:56.6]} 13. Nc5 {[%clk 0:02:16.2]} 13... Qxc4 {[%clk 0:02:53.8]}
14. Bxc4 {[%clk 0:02:15.4]} 14... Bxc5 {[%clk 0:02:54.5]} 15. dxc5 {[%clk
0:02:16.1]} 15... Bxf3 {[%clk 0:02:55.2]} 16. gxf3 {[%clk 0:02:16.9]} 16... Nd7
{[%clk 0:02:55.8]} 17. Rhe1 {[%clk 0:01:56.2]} 17... Ke7 {[%clk 0:02:44.2]} 18.
c6 {[%clk 0:01:51]} 18... Nb6 {[%clk 0:02:41.4]} 19. Bd3 {[%clk 0:01:50.4]}
19... Kf6 {[%clk 0:02:36.9]} 20. f4 {[%clk 0:01:50.4]} 20... a5 {[%clk
0:02:35.9]} 21. Rg1 {[%clk 0:01:44.9]} 21... Rhg8 {[%clk 0:02:34.2]} 22. Rg3
{[%clk 0:01:43.5]} 22... Rg6 {[%clk 0:02:28.9]} 23. Rdg1 {[%clk 0:01:31.9]}
23... Nd5 {[%clk 0:02:28.6]} 24. Rd1 {[%clk 0:01:19.2]} 24... Nxf4 {[%clk
0:02:27.6]} 25. Bb5 {[%clk 0:01:19.2]} 25... Nd5 {[%clk 0:02:25.8]} 26. Bc4
{[%clk 0:01:13.7]} 26... Nb6 {[%clk 0:02:25.1]} 27. Bb5 {[%clk 0:01:13.8]} 27...
Rag8 {[%clk 0:02:23.7]} 28. a3 {[%clk 0:01:10.3]} 28... h5 {[%clk 0:02:21]} 29.
axb4 {[%clk 0:01:00.2]} 29... axb4 {[%clk 0:02:21.9]} 30. Rb3 {[%clk 0:00:59.3]}
30... Rg4 {[%clk 0:02:20]} 31. Be2 {[%clk 0:00:55]} 31... Rf4 {[%clk 0:02:20.3]}
32. Bxh5 {[%clk 0:00:53.9]} 32... Rh8 {[%clk 0:02:20.5]} 33. Rh3 {[%clk
0:00:39.3]} 33... Rxf2 {[%clk 0:02:19.4]} 34. Rg1 {[%clk 0:00:38.2]} 34... Nd5
{[%clk 0:02:17.4]} 35. Rf3 {[%clk 0:00:35.5]} 35... Rxh2 {[%clk 0:02:15.9]} 36.
Bg4 {[%clk 0:00:35.9]} 36... Rg8 {[%clk 0:02:09.8]} 37. Rgg3 {[%clk 0:00:25.3]}
37... Ke7 {[%clk 0:01:59.5]} 38. Bh3 {[%clk 0:00:24.9]} 38... Rxg3 {[%clk
0:01:57.4]} 39. Rxg3 {[%clk 0:00:25.8]} 39... Nf4 {[%clk 0:01:55.6]} 40. Bf1
{[%clk 0:00:24.6]} 40... e5 {[%clk 0:01:49.4]} 41. Kd1 {[%clk 0:00:22.4]} 41...
Kd6 {[%clk 0:01:48.3]} 42. Rb3 {[%clk 0:00:20.7]} 42... Rf2 {[%clk 0:01:45.8]}
43. Bc4 {[%clk 0:00:14.5]} 43... e4 {[%clk 0:01:45.4]} 44. Bxf7 {[%clk
0:00:14.5]} 44... Kxc6 {[%clk 0:01:43.5]} 45. Rxb4 {[%clk 0:00:14]} 45... e3
{[%clk 0:01:43.4]} 46. Ke1 {[%clk 0:00:09.2]} 46... Ng2+ {[%clk 0:01:42.4]} 0-1

[Event "*** Titled Tuesday Blitz"]
[Site "Chess.com"]
[Date "2020.11.10"]
[Round "3"]
[White "Stalri"]
[Black "capatl"]
[Result "0-1"]
[WhiteElo "2194"]
[BlackElo "2497"]
[TimeControl "180+1"]
[EndTime "10:30:38 PST"]
[Termination "capatl won by checkmate"]

1. d4 {[%clk 0:03:00.9]} 1... d5 {[%clk 0:02:32.2]} 2. c4 {[%clk 0:02:53.5]}
2... e6 {[%clk 0:02:31.4]} 3. Nc3 {[%clk 0:02:40.8]} 3... Nf6 {[%clk 0:02:22.2]}
4. cxd5 {[%clk 0:02:40.1]} 4... exd5 {[%clk 0:02:21.9]} 5. Bg5 {[%clk
0:02:40.1]} 5... c6 {[%clk 0:02:22.8]} 6. e3 {[%clk 0:02:39.9]} 6... Nbd7 {[%clk
0:02:23.3]} 7. Bd3 {[%clk 0:02:39.9]} 7... Be7 {[%clk 0:02:23.5]} 8. Qc2 {[%clk
0:02:39.1]} 8... Nf8 {[%clk 0:02:24.1]} 9. f3 {[%clk 0:02:37.5]} 9... g6 {[%clk
0:02:23]} 10. Nge2 {[%clk 0:02:36.7]} 10... Ne6 {[%clk 0:02:23.3]} 11. Bh4
{[%clk 0:02:36.1]} 11... O-O {[%clk 0:02:13.3]} 12. O-O {[%clk 0:02:35.6]} 12...
Nh5 {[%clk 0:02:10.2]} 13. Bf2 {[%clk 0:02:34.1]} 13... f5 {[%clk 0:02:10.4]}
14. Rfb1 {[%clk 0:02:29]} 14... Bd7 {[%clk 0:01:39.3]} 15. b4 {[%clk 0:02:26.7]}
15... a6 {[%clk 0:01:38.4]} 16. a4 {[%clk 0:02:24.8]} 16... b5 {[%clk
0:01:34.2]} 17. axb5 {[%clk 0:02:24.4]} 17... axb5 {[%clk 0:01:35.1]} 18. Nc1
{[%clk 0:02:22.3]} 18... Rxa1 {[%clk 0:01:32.7]} 19. Rxa1 {[%clk 0:02:23.2]}
19... Qc7 {[%clk 0:01:30]} 20. N1a2 {[%clk 0:02:02.4]} 20... Ra8 {[%clk
0:01:27.3]} 21. Rc1 {[%clk 0:02:00.7]} 21... Qa7 {[%clk 0:01:25.1]} 22. g3
{[%clk 0:01:53.1]} 22... Qa3 {[%clk 0:01:20.2]} 23. Rb1 {[%clk 0:01:50.5]} 23...
Nf6 {[%clk 0:01:17]} 24. Rb3 {[%clk 0:01:49.1]} 24... Qa6 {[%clk 0:01:14.6]} 25.
Nc1 {[%clk 0:01:38.9]} 25... Ne8 {[%clk 0:01:13]} 26. Rb2 {[%clk 0:01:32.7]}
26... Nd6 {[%clk 0:01:13]} 27. Ra2 {[%clk 0:01:30.5]} 27... Qb7 {[%clk
0:01:12.3]} 28. Nb3 {[%clk 0:01:29.8]} 28... Nc4 {[%clk 0:01:08.7]} 29. Nc5
{[%clk 0:01:29.5]} 29... Nxc5 {[%clk 0:01:06.8]} 30. dxc5 {[%clk 0:01:29]} 30...
Bf6 {[%clk 0:01:03.4]} 31. Ne2 {[%clk 0:01:24.8]} 31... Ne5 {[%clk 0:00:59.5]}
32. Nd4 {[%clk 0:01:22]} 32... Rxa2 {[%clk 0:00:58]} 33. Qxa2 {[%clk 0:01:13.3]}
33... Nxd3 {[%clk 0:00:58]} 34. Qa5 {[%clk 0:01:10.8]} 34... Ne5 {[%clk
0:00:54.2]} 35. f4 {[%clk 0:01:09.7]} 35... Nc4 {[%clk 0:00:53.8]} 36. h4 {[%clk
0:00:56.1]} 36... Nxa5 {[%clk 0:00:53.1]} 37. bxa5 {[%clk 0:00:55.7]} 37... b4
{[%clk 0:00:52.8]} 38. Nb3 {[%clk 0:00:55.9]} 38... Qb5 {[%clk 0:00:51.9]} 39.
Be1 {[%clk 0:00:53]} 39... Bc3 {[%clk 0:00:52.8]} 40. Bf2 {[%clk 0:00:52.9]}
40... Bc8 {[%clk 0:00:50.8]} 41. Kh2 {[%clk 0:00:51.2]} 41... Ba6 {[%clk
0:00:50.9]} 42. h5 {[%clk 0:00:51]} 42... Qf1 {[%clk 0:00:49.5]} 43. Bg1 {[%clk
0:00:50.7]} 43... Be2 {[%clk 0:00:48.9]} 44. a6 {[%clk 0:00:48.7]} 44... Bf3
{[%clk 0:00:48.7]} 45. a7 {[%clk 0:00:48.7]} 45... Qg2# {[%clk 0:00:49.5]} 0-1

[Event "*** Titled Tuesday Blitz"]
[Site "Chess.com"]
[Date "2020.11.10"]
[Round "3"]
[White "eljanov"]
[Black "LaStreetCmaMaison"]
[Result "0-1"]
[WhiteElo "2815"]
[BlackElo "2623"]
[TimeControl "180+1"]
[EndTime "10:30:39 PST"]
[Termination "LaStreetCmaMaison won on time"]

1. Nf3 {[%clk 0:03:00.8]} 1... Nf6 {[%clk 0:02:59.4]} 2. g3 {[%clk 0:02:59.9]}
2... c5 {[%clk 0:02:59.1]} 3. Bg2 {[%clk 0:02:58.7]} 3... Nc6 {[%clk 0:02:59.5]}
4. O-O {[%clk 0:02:57.6]} 4... d5 {[%clk 0:02:59.6]} 5. d4 {[%clk 0:02:57.2]}
5... e6 {[%clk 0:02:59.2]} 6. c4 {[%clk 0:02:57]} 6... dxc4 {[%clk 0:02:56.9]}
7. Qa4 {[%clk 0:02:56.8]} 7... Bd7 {[%clk 0:02:44.4]} 8. dxc5 {[%clk 0:02:50.7]}
8... Bxc5 {[%clk 0:02:37.2]} 9. Qxc4 {[%clk 0:02:50.5]} 9... Bb6 {[%clk
0:02:19.2]} 10. Rd1 {[%clk 0:02:34.1]} 10... Rc8 {[%clk 0:02:16.9]} 11. Nc3
{[%clk 0:02:09.2]} 11... h6 {[%clk 0:02:01.7]} 12. Qd3 {[%clk 0:01:36.4]} 12...
O-O {[%clk 0:01:57]} 13. Bf4 {[%clk 0:01:32.8]} 13... Nb4 {[%clk 0:01:49.9]} 14.
Qd2 {[%clk 0:01:12.9]} 14... Bxf2+ {[%clk 0:01:43.1]} 15. Kxf2 {[%clk
0:01:04.3]} 15... Rxc3 {[%clk 0:01:43.7]} 16. Ne5 {[%clk 0:01:01.2]} 16... Qb6+
{[%clk 0:01:10.3]} 17. Qd4 {[%clk 0:01:01.3]} 17... Rc5 {[%clk 0:00:44.4]} 18.
Nxd7 {[%clk 0:00:28.4]} 18... Nxd7 {[%clk 0:00:45.3]} 19. Bd6 {[%clk 0:00:28]}
19... Nc2 {[%clk 0:00:40.4]} 0-1